fUST/lending_fUST_20260605
["ID","MTS","AMOUNT","RATE_DAILY","PERIOD"]
[424108104,1780596651000,-646.10068089,0.00015068,2]
[424108109,1780596651000,-172.03241,0.00015068,2]
[424108108,1780596651000,-500.0,0.00015068,2]
[424108078,1780596651000,-818.72,0.00015068,2]
[424108092,1780596651000,-574.71,0.00015068,2]
[424108077,1780596651000,-500.0,0.00015068,2]
[424108059,1780596651000,-500.0,0.00015068,2]
[424108082,1780596651000,-500.0,0.00015068,2]
[424108118,1780596651000,-500.0,0.00015342,2]
[424108050,1780596651000,-500.0,0.00015068,2]
[424108052,1780596651000,-500.0,0.00015068,2]
[424108051,1780596651000,-500.0,0.00015068,2]
[424108055,1780596651000,-500.0,0.00015068,2]
[424108056,1780596651000,-500.0,0.00015068,2]
[424108053,1780596651000,-500.0,0.00015068,2]
[424108054,1780596651000,-500.0,0.00015068,2]
[424108058,1780596651000,-500.0,0.00015068,2]
[424108068,1780596651000,-500.0,0.00015068,2]
[424108070,1780596651000,-1352.33,0.00015068,2]
[424108069,1780596651000,-500.0,0.00015068,2]
[424108062,1780596651000,-500.0,0.00015068,2]
[424108057,1780596651000,-500.0,0.00015068,2]
[424108064,1780596651000,-500.0,0.00015068,2]
[424108061,1780596651000,-500.0,0.00015068,2]
[424108060,1780596651000,-500.0,0.00015068,2]
[424108066,1780596651000,-500.0,0.00015068,2]
[424108065,1780596651000,-458.45,0.00015068,2]
[424108067,1780596651000,-314.64553126,0.00015068,2]
[424108063,1780596651000,-500.0,0.00015068,2]
[424108071,1780596651000,-500.0,0.00015068,2]
[424108073,1780596651000,-500.0,0.00015068,2]
[424108076,1780596651000,-500.0,0.00015068,2]
[424108080,1780596651000,-500.0,0.00015068,2]
[424108072,1780596651000,-500.0,0.00015068,2]
[424108074,1780596651000,-614.76116514,0.00015068,2]
[424108075,1780596651000,-500.0,0.00015068,2]
[424108083,1780596651000,-524.99,0.00015068,2]
[424108081,1780596651000,-500.0,0.00015068,2]
[424108119,1780596651000,-500.0,0.00015342,2]
[424108121,1780596651000,-500.0,0.00015342,2]
[424108122,1780596651000,-500.0,0.00015342,2]
[424108146,1780596651000,-500.0,0.00015342,2]
[424108145,1780596651000,-500.0,0.00015342,2]
[424108147,1780596651000,-500.0,0.00015342,2]
[424108151,1780596651000,-574.71,0.00015342,2]
[424108153,1780596651000,-500.0,0.00015342,2]
[424108152,1780596651000,-500.0,0.00015342,2]
[424108158,1780596651000,-500.0,0.00015342,2]
[424108159,1780596651000,-500.0,0.00015342,2]
[424108157,1780596651000,-3630.11,0.00015342,2]
[424108156,1780596651000,-1238.79,0.00015342,2]
[424108160,1780596651000,-563.73,0.00015342,2]
[424108164,1780596651000,-500.0,0.00015342,2]
[424108154,1780596651000,-500.0,0.00015342,2]
[424108161,1780596651000,-500.0,0.00015342,2]
[424108162,1780596651000,-500.0,0.00015342,2]
[424108163,1780596651000,-500.0,0.00015342,2]
[424108165,1780596651000,-500.0,0.00015342,2]
[424108155,1780596651000,-990.48,0.00015342,2]
[424108167,1780596651000,-2624.18919653,0.000155,2]
[424108166,1780596651000,-500.0,0.00015342,2]
[424108175,1780596651000,-500.0,0.00015616,2]
[424108171,1780596651000,-500.0,0.00015616,2]
[424108169,1780596651000,-500.0,0.00015616,2]
[424108168,1780596651000,-2624.18919653,0.000156,2]
[424108120,1780596651000,-500.0,0.00015342,2]
[424108170,1780596651000,-500.0,0.00015616,2]
[424108174,1780596651000,-500.0,0.00015616,2]
[424108172,1780596651000,-500.0,0.00015616,2]
[424108176,1780596651000,-500.0,0.00015616,2]
[424108143,1780596651000,-524.99,0.00015342,2]
[424108144,1780596651000,-500.0,0.00015342,2]
[424108173,1780596651000,-500.0,0.00015616,2]
[424108141,1780596651000,-500.0,0.00015342,2]
[424108123,1780596651000,-500.0,0.00015342,2]
[424108111,1780596651000,-794.84687472,0.00015243,2]
[424108112,1780596651000,-720.0,0.00015255,2]
[424108114,1780596651000,-2624.18919653,0.000153,2]
[424108115,1780596651000,-576.078005,0.00015304,2]
[424108117,1780596651000,-532.9,0.00015342,2]
[424108113,1780596651000,-651.0,0.00015269,2]
[424108116,1780596651000,-500.0,0.00015342,2]
[424108126,1780596651000,-500.0,0.00015342,2]
[424108128,1780596651000,-500.0,0.00015342,2]
[424108127,1780596651000,-500.0,0.00015342,2]
[424108129,1780596651000,-500.0,0.00015342,2]
[424108125,1780596651000,-500.0,0.00015342,2]
[424108124,1780596651000,-500.0,0.00015342,2]
[424108135,1780596651000,-500.0,0.00015342,2]
[424108139,1780596651000,-500.0,0.00015342,2]
[424108150,1780596651000,-500.0,0.00015342,2]
[424108136,1780596651000,-500.0,0.00015342,2]
[424108140,1780596651000,-500.0,0.00015342,2]
[424108149,1780596651000,-500.0,0.00015342,2]
[424108137,1780596651000,-500.0,0.00015342,2]
[424108148,1780596651000,-500.0,0.00015342,2]
[424108142,1780596651000,-500.0,0.00015342,2]
[424108132,1780596651000,-481.9900386,0.00015342,2]
[424108131,1780596651000,-1352.33,0.00015342,2]
[424108130,1780596651000,-500.0,0.00015342,2]
[424108134,1780596651000,-500.0,0.00015342,2]
[424108133,1780596651000,-500.0,0.00015342,2]
[424108138,1780596651000,-818.72,0.00015342,2]
[424108210,1780596652000,-500.0,0.00015616,2]
[424108204,1780596652000,-500.0,0.00015616,2]
[424108206,1780596652000,-500.0,0.00015616,2]
[424108209,1780596652000,-500.0,0.00015616,2]
[424108207,1780596652000,-500.0,0.00015616,2]
[424108211,1780596652000,-530.591778,0.00015616,2]
[424108205,1780596652000,-563.73,0.00015616,2]
[424108212,1780596652000,-530.591778,0.00015616,2]
[424108218,1780596652000,-500.0,0.0001589,2]
[424108208,1780596652000,-500.0,0.00015616,2]
[424108215,1780596652000,-2624.18919653,0.000158,2]
[424108226,1780596652000,-500.0,0.0001589,2]
[424108217,1780596652000,-500.0,0.0001589,2]
[424108216,1780596652000,-500.0,0.0001589,2]
[424108219,1780596652000,-500.0,0.0001589,2]
[424108228,1780596652000,-633.96,0.0001589,2]
[424108227,1780596652000,-500.0,0.0001589,2]
[424108221,1780596652000,-500.0,0.0001589,2]
[424108229,1780596652000,-818.72,0.0001589,2]
[424108220,1780596652000,-500.0,0.0001589,2]
[424108224,1780596652000,-500.0,0.0001589,2]
[424108225,1780596652000,-1352.33,0.0001589,2]
[424108214,1780596652000,-530.591776,0.00015616,2]
[424108222,1780596652000,-500.0,0.0001589,2]
[424108213,1780596652000,-530.591778,0.00015616,2]
[424108189,1780596652000,-500.0,0.00015616,2]
[424108203,1780596652000,-500.0,0.00015616,2]
[424108223,1780596652000,-500.0,0.0001589,2]
[424108178,1780596652000,-1352.33,0.00015616,2]
[424108179,1780596652000,-595.52,0.00015616,2]
[424108180,1780596652000,-500.0,0.00015616,2]
[424108185,1780596652000,-500.0,0.00015616,2]
[424108177,1780596652000,-500.0,0.00015616,2]
[424108187,1780596652000,-500.0,0.00015616,2]
[424108186,1780596652000,-500.0,0.00015616,2]
[424108182,1780596652000,-500.0,0.00015616,2]
[424108181,1780596652000,-500.0,0.00015616,2]
[424108188,1780596652000,-524.99,0.00015616,2]
[424108183,1780596652000,-818.72,0.00015616,2]
[424108184,1780596652000,-500.0,0.00015616,2]
[424108191,1780596652000,-500.0,0.00015616,2]
[424108196,1780596652000,-574.71,0.00015616,2]
[424108193,1780596652000,-500.0,0.00015616,2]
[424108195,1780596652000,-500.0,0.00015616,2]
[424108194,1780596652000,-500.0,0.00015616,2]
[424108192,1780596652000,-500.0,0.00015616,2]
[424108197,1780596652000,-500.0,0.00015616,2]
[424108190,1780596652000,-500.0,0.00015616,2]
[424108198,1780596652000,-500.0,0.00015616,2]
[424108200,1780596652000,-990.48,0.00015616,2]
[424108199,1780596652000,-500.0,0.00015616,2]
[424108201,1780596652000,-1238.79,0.00015616,2]
[424108202,1780596652000,-3630.11,0.00015616,2]
[424108242,1780596652000,-574.71,0.0001589,2]
[424108231,1780596652000,-500.0,0.0001589,2]
[424108243,1780596652000,-500.0,0.0001589,2]
[424108262,1780596652000,-188.99926057,0.000161,2]
[424108264,1780596652000,-176.43361687,0.000161,2]
[424108263,1780596652000,-150.31576218,0.000161,2]
[424108265,1780596652000,-333.93307189,0.000161,2]
[424108266,1780596652000,-225.94201961,0.000161,2]
[424108267,1780596652000,-178.00049997,0.000161,2]
[424108268,1780596652000,-2624.18919653,0.000161,2]
[424108269,1780596652000,-174.62092264,0.00016103,2]
[424108270,1780596652000,-164.85202427,0.00016103,2]
[424108277,1780596652000,-175.15912143,0.00016104,2]
[424108272,1780596652000,-188.36083562,0.00016103,2]
[424108261,1780596652000,-171.80007845,0.000161,2]
[424108275,1780596652000,-184.86512631,0.00016103,2]
[424108274,1780596652000,-187.51392899,0.00016103,2]
[424108276,1780596652000,-200.17499603,0.00016103,2]
[424108279,1780596652000,-532.33928025,0.00016115,2]
[424108278,1780596652000,-166.25065017,0.00016104,2]
[424108280,1780596652000,-694.7292187,0.00016115,2]
[424108283,1780596652000,-177.09276658,0.00016128,2]
[424108284,1780596652000,-193.38310432,0.00016128,2]
[424108282,1780596652000,-170.84254717,0.00016128,2]
[424108281,1780596652000,-210.23514373,0.00016115,2]
[424108285,1780596652000,-158.42809694,0.00016128,2]
[424108232,1780596652000,-500.0,0.0001589,2]
[424108271,1780596652000,-182.63763519,0.00016103,2]
[424108255,1780596652000,-500.0,0.0001589,2]
[424108273,1780596652000,-197.35309142,0.00016103,2]
[424108256,1780596652000,-500.0,0.0001589,2]
[424108260,1780596652000,-189.88676728,0.000161,2]
[424108233,1780596652000,-500.0,0.0001589,2]
[424108237,1780596652000,-500.0,0.0001589,2]
[424108236,1780596652000,-500.0,0.0001589,2]
[424108234,1780596652000,-524.99,0.0001589,2]
[424108239,1780596652000,-500.0,0.0001589,2]
[424108230,1780596652000,-195.44,0.0001589,2]
[424108238,1780596652000,-500.0,0.0001589,2]
[424108235,1780596652000,-500.0,0.0001589,2]
[424108240,1780596652000,-500.0,0.0001589,2]
[424108244,1780596652000,-500.0,0.0001589,2]
[424108246,1780596652000,-990.48,0.0001589,2]
[424108241,1780596652000,-500.0,0.0001589,2]
[424108259,1780596652000,-153.30256822,0.000161,2]
[424108247,1780596652000,-1238.79,0.0001589,2]
[424108258,1780596652000,-171.28411191,0.000161,2]
[424108257,1780596652000,-2624.18919653,0.000159,2]
[424108253,1780596652000,-500.0,0.0001589,2]
[424108252,1780596652000,-500.0,0.0001589,2]
[424108254,1780596652000,-500.0,0.0001589,2]
[424108250,1780596652000,-500.0,0.0001589,2]
[424108251,1780596652000,-563.73,0.0001589,2]
[424108248,1780596652000,-3630.11,0.0001589,2]
[424108245,1780596652000,-500.0,0.0001589,2]
[424108249,1780596652000,-500.0,0.0001589,2]
[424108329,1780596653000,-500.0,0.00016438,2]
[424108328,1780596653000,-500.0,0.00016438,2]
[424108325,1780596653000,-152.0,0.000162,2]
[424108323,1780596653000,-500.0,0.00016164,2]
[424108321,1780596653000,-500.0,0.00016164,2]
[424108317,1780596653000,-500.0,0.00016164,2]
[424108324,1780596653000,-2624.18919653,0.000162,2]
[424108319,1780596653000,-500.0,0.00016164,2]
[424108320,1780596653000,-435.75887307,0.00016164,2]
[424108330,1780596653000,-500.0,0.00016438,2]
[424108318,1780596653000,-563.73,0.00016164,2]
[424108322,1780596653000,-165.68,0.00016164,2]
[424108326,1780596653000,-2624.18919653,0.000164,2]
[424108338,1780596653000,-500.0,0.00016438,2]
[424108332,1780596653000,-444.72,0.00016438,2]
[424108342,1780596653000,-500.0,0.00016438,2]
[424108343,1780596653000,-500.0,0.00016438,2]
[424108336,1780596653000,-500.0,0.00016438,2]
[424108334,1780596653000,-500.0,0.00016438,2]
[424108337,1780596653000,-818.72,0.00016438,2]
[424108331,1780596653000,-500.0,0.00016438,2]
[424108335,1780596653000,-1352.33,0.00016438,2]
[424108339,1780596653000,-500.0,0.00016438,2]
[424108340,1780596653000,-500.0,0.00016438,2]
[424108333,1780596653000,-500.0,0.00016438,2]
[424108344,1780596653000,-500.0,0.00016438,2]
[424108327,1780596653000,-3591.36956499,0.00016425,2]
[424108314,1780596653000,-1238.79,0.00016164,2]
[424108289,1780596653000,-500.0,0.00016164,2]
[424108311,1780596653000,-500.0,0.00016164,2]
[424108286,1780596653000,-500.0,0.00016164,2]
[424108287,1780596653000,-582.11615677,0.00016164,2]
[424108288,1780596653000,-500.0,0.00016164,2]
[424108346,1780596653000,-500.0,0.00016438,2]
[424108290,1780596653000,-500.0,0.00016164,2]
[424108291,1780596653000,-500.0,0.00016164,2]
[424108292,1780596653000,-500.0,0.00016164,2]
[424108296,1780596653000,-309.66399247,0.00016164,2]
[424108294,1780596653000,-500.0,0.00016164,2]
[424108295,1780596653000,-1352.33,0.00016164,2]
[424108297,1780596653000,-500.0,0.00016164,2]
[424108293,1780596653000,-553.39,0.00016164,2]
[424108298,1780596653000,-818.72,0.00016164,2]
[424108312,1780596653000,-500.0,0.00016164,2]
[424108300,1780596653000,-500.0,0.00016164,2]
[424108302,1780596653000,-524.99,0.00016164,2]
[424108299,1780596653000,-500.0,0.00016164,2]
[424108301,1780596653000,-500.0,0.00016164,2]
[424108305,1780596653000,-500.0,0.00016164,2]
[424108316,1780596653000,-500.0,0.00016164,2]
[424108315,1780596653000,-3630.11,0.00016164,2]
[424108308,1780596653000,-500.0,0.00016164,2]
[424108313,1780596653000,-990.48,0.00016164,2]
[424108307,1780596653000,-500.0,0.00016164,2]
[424108310,1780596653000,-508.96,0.00016164,2]
[424108306,1780596653000,-500.0,0.00016164,2]
[424108304,1780596653000,-500.0,0.00016164,2]
[424108309,1780596653000,-574.71,0.00016164,2]
[424108303,1780596653000,-500.0,0.00016164,2]
[424108347,1780596653000,-500.0,0.00016438,2]
[424108341,1780596653000,-524.99,0.00016438,2]
[424108356,1780596653000,-563.73,0.00016438,2]
[424108376,1780596653000,-500.0,0.00016712,2]
[424108379,1780596653000,-500.0,0.00016712,2]
[424108374,1780596653000,-500.0,0.00016712,2]
[424108380,1780596653000,-818.72,0.00016712,2]
[424108390,1780596653000,-526.61496429,0.00016712,2]
[424108393,1780596653000,-990.48,0.00016712,2]
[424108392,1780596653000,-500.0,0.00016712,2]
[424108391,1780596653000,-574.71,0.00016712,2]
[424108385,1780596653000,-422.48,0.00016712,2]
[424108386,1780596653000,-500.0,0.00016712,2]
[424108388,1780596653000,-500.0,0.00016712,2]
[424108389,1780596653000,-500.0,0.00016712,2]
[424108394,1780596653000,-1238.79,0.00016712,2]
[424108384,1780596653000,-524.99,0.00016712,2]
[424108387,1780596653000,-500.0,0.00016712,2]
[424108396,1780596653000,-500.0,0.00016712,2]
[424108398,1780596653000,-563.73,0.00016712,2]
[424108397,1780596653000,-500.0,0.00016712,2]
[424108399,1780596653000,-500.0,0.00016712,2]
[424108405,1780596653000,-2961.0548451,0.00016829,2]
[424108403,1780596653000,-864.0,0.0001678,2]
[424108402,1780596653000,-1060.0,0.00016767,4]
[424108406,1780596653000,-342.56822383,0.00016884,2]
[424108404,1780596653000,-309.7943672,0.00016829,2]
[424108407,1780596653000,-306.60513644,0.00016884,2]
[424108401,1780596653000,-500.0,0.00016712,2]
[424108408,1780596653000,-379.77353456,0.00016884,2]
[424108345,1780596653000,-500.0,0.00016438,2]
[424108395,1780596653000,-3630.11,0.00016712,2]
[424108383,1780596653000,-500.0,0.00016712,2]
[424108400,1780596653000,-500.0,0.00016712,2]
[424108382,1780596653000,-500.0,0.00016712,2]
[424108348,1780596653000,-574.71,0.00016438,2]
[424108355,1780596653000,-500.0,0.00016438,2]
[424108350,1780596653000,-500.0,0.00016438,2]
[424108349,1780596653000,-300.0,0.00016438,2]
[424108357,1780596653000,-500.0,0.00016438,2]
[424108351,1780596653000,-990.48,0.00016438,2]
[424108352,1780596653000,-1238.79,0.00016438,2]
[424108381,1780596653000,-500.0,0.00016712,2]
[424108353,1780596653000,-3630.11,0.00016438,2]
[424108359,1780596653000,-500.0,0.00016438,2]
[424108369,1780596653000,-151.0,0.00016438,2]
[424108370,1780596653000,-151.0,0.00016438,2]
[424108358,1780596653000,-500.0,0.00016438,2]
[424108371,1780596653000,-246.138578,0.00016438,2]
[424108354,1780596653000,-500.0,0.00016438,2]
[424108361,1780596653000,-151.0,0.00016438,2]
[424108360,1780596653000,-151.0,0.00016438,2]
[424108373,1780596653000,-500.0,0.00016712,2]
[424108377,1780596653000,-167.0595966,0.00016712,2]
[424108378,1780596653000,-1352.33,0.00016712,2]
[424108375,1780596653000,-500.0,0.00016712,2]
[424108364,1780596653000,-151.0,0.00016438,2]
[424108372,1780596653000,-556.7996497,0.00016592,2]
[424108365,1780596653000,-151.0,0.00016438,2]
[424108363,1780596653000,-151.0,0.00016438,2]
[424108367,1780596653000,-151.0,0.00016438,2]
[424108366,1780596653000,-151.0,0.00016438,2]
[424108362,1780596653000,-151.0,0.00016438,2]
[424108368,1780596653000,-151.0,0.00016438,2]
[424108458,1780596654000,-500.0,0.00016986,2]
[424108461,1780596654000,-185.0,0.0001719,2]
[424108459,1780596654000,-500.0,0.00016986,2]
[424108449,1780596654000,-500.0,0.00016986,2]
[424108450,1780596654000,-574.71,0.00016986,2]
[424108439,1780596654000,-1352.33,0.00016986,2]
[424108442,1780596654000,-500.0,0.00016986,2]
[424108441,1780596654000,-818.72,0.00016986,2]
[424108435,1780596654000,-500.0,0.00016986,2]
[424108474,1780596654000,-500.0,0.0001726,2]
[424108437,1780596654000,-500.0,0.00016986,2]
[424108443,1780596654000,-500.0,0.00016986,2]
[424108453,1780596654000,-1238.79,0.00016986,2]
[424108465,1780596654000,-1352.33,0.0001726,2]
[424108451,1780596654000,-500.0,0.00016986,2]
[424108454,1780596654000,-3630.11,0.00016986,2]
[424108460,1780596654000,-444.0,0.0001719,2]
[424108456,1780596654000,-563.73,0.00016986,2]
[424108457,1780596654000,-500.0,0.00016986,2]
[424108452,1780596654000,-990.48,0.00016986,2]
[424108462,1780596654000,-500.0,0.0001726,2]
[424108471,1780596654000,-524.99,0.0001726,2]
[424108463,1780596654000,-500.0,0.0001726,2]
[424108472,1780596654000,-500.0,0.0001726,2]
[424108467,1780596654000,-818.72,0.0001726,2]
[424108469,1780596654000,-500.0,0.0001726,2]
[424108445,1780596654000,-524.99,0.00016986,2]
[424108455,1780596654000,-500.0,0.00016986,2]
[424108447,1780596654000,-153.24,0.00016986,2]
[424108430,1780596654000,-341.68509434,0.00016913,2]
[424108448,1780596654000,-500.0,0.00016986,2]
[424108409,1780596654000,-343.60015689,0.00016884,2]
[424108410,1780596654000,-377.99852114,0.00016884,2]
[424108413,1780596654000,-667.86614378,0.00016884,2]
[424108411,1780596654000,-300.63152436,0.00016884,2]
[424108412,1780596654000,-352.86723375,0.00016884,2]
[424108418,1780596654000,-329.70404854,0.00016887,2]
[424108420,1780596654000,-376.72167124,0.00016887,2]
[424108417,1780596654000,-349.24184528,0.00016887,2]
[424108416,1780596654000,-356.00099995,0.00016884,2]
[424108414,1780596654000,-451.88403922,0.00016884,2]
[424108419,1780596654000,-365.27527037,0.00016887,2]
[424108415,1780596654000,-179.56741458,0.00016884,2]
[424108422,1780596654000,-375.02785797,0.00016887,2]
[424108432,1780596654000,-386.76620864,0.00016913,2]
[424108434,1780596654000,-279.005,0.00016965,2]
[424108429,1780596654000,-420.47028746,0.000169,2]
[424108421,1780596654000,-394.70618284,0.00016887,2]
[424108428,1780596654000,-1389.4584374,0.000169,2]
[424108433,1780596654000,-316.85619389,0.00016913,2]
[424108423,1780596654000,-369.73025262,0.00016887,2]
[424108431,1780596654000,-354.18553316,0.00016913,2]
[424108424,1780596654000,-400.34999206,0.00016887,2]
[424108425,1780596654000,-350.31824285,0.00016888,2]
[424108427,1780596654000,-1064.6785605,0.000169,2]
[424108426,1780596654000,-332.50130035,0.00016888,2]
[424108436,1780596654000,-609.89,0.00016986,2]
[424108444,1780596654000,-500.0,0.00016986,2]
[424108446,1780596654000,-500.0,0.00016986,2]
[424108466,1780596654000,-642.35,0.0001726,2]
[424108438,1780596654000,-500.0,0.00016986,2]
[424108473,1780596654000,-500.0,0.0001726,2]
[424108505,1780596654000,-180.22369928,0.0001741,2]
[424108506,1780596654000,-523.86276792,0.0001741,2]
[424108507,1780596654000,-217.33212045,0.0001741,2]
[424108510,1780596654000,-547.91290556,0.0001741,2]
[424108509,1780596654000,-232.57196844,0.0001741,2]
[424108508,1780596654000,-494.55607282,0.0001741,2]
[424108512,1780596654000,-565.08250686,0.0001741,2]
[424108514,1780596654000,-163.46673304,0.0001741,2]
[424108515,1780596654000,-249.24370751,0.0001741,2]
[424108511,1780596654000,-210.76761759,0.0001741,2]
[424108513,1780596654000,-592.05927427,0.0001741,2]
[424108518,1780596654000,-214.16806604,0.0001741,2]
[424108517,1780596654000,-554.59537893,0.0001741,2]
[424108504,1780596654000,-534.00149992,0.00017407,2]
[424108516,1780596654000,-562.54178696,0.0001741,2]
[424108519,1780596654000,-600.52498809,0.0001741,2]
[424108521,1780596654000,-212.93612096,0.00017411,2]
[424108522,1780596654000,-206.57020369,0.00017411,2]
[424108524,1780596654000,-1597.01784075,0.00017423,2]
[424108526,1780596654000,-206.30782551,0.00017423,2]
[424108525,1780596654000,-2084.1876561,0.00017423,2]
[424108523,1780596654000,-498.75195052,0.00017411,2]
[424108530,1780596654000,-580.14931297,0.00017436,2]
[424108527,1780596654000,-630.70543119,0.00017423,2]
[424108529,1780596654000,-531.27829974,0.00017436,2]
[424108528,1780596654000,-512.52764152,0.00017436,2]
[424108531,1780596654000,-475.28429083,0.00017436,2]
[424108470,1780596654000,-500.0,0.0001726,2]
[424108520,1780596654000,-525.47736428,0.00017411,2]
[424108502,1780596654000,-359.13482916,0.00017407,2]
[424108440,1780596654000,-500.0,0.00016986,2]
[424108501,1780596654000,-1001.79921567,0.00017407,2]
[424108464,1780596654000,-500.0,0.0001726,2]
[424108468,1780596654000,-500.0,0.0001726,2]
[424108475,1780596654000,-574.71,0.0001726,2]
[424108477,1780596654000,-1238.79,0.0001726,2]
[424108487,1780596654000,-2675.38562668,0.00017403,2]
[424108476,1780596654000,-990.48,0.0001726,2]
[424108478,1780596654000,-3630.11,0.0001726,2]
[424108488,1780596654000,-3848.70274712,0.00017403,2]
[424108479,1780596654000,-500.0,0.0001726,2]
[424108480,1780596654000,-563.73,0.0001726,2]
[424108483,1780596654000,-500.0,0.0001726,2]
[424108482,1780596654000,-500.0,0.0001726,2]
[424108481,1780596654000,-500.0,0.0001726,2]
[424108485,1780596654000,-963.13882561,0.00017403,2]
[424108503,1780596654000,-677.82605883,0.00017407,2]
[424108484,1780596654000,-535.07712534,0.00017403,2]
[424108499,1780596654000,-450.94728653,0.00017407,2]
[424108496,1780596654000,-515.40023534,0.00017407,2]
[424108494,1780596654000,-459.90770466,0.00017407,2]
[424108495,1780596654000,-569.66030184,0.00017407,2]
[424108498,1780596654000,-189.66463657,0.00017407,2]
[424108500,1780596654000,-529.30085062,0.00017407,2]
[424108486,1780596654000,-1712.24680108,0.00017403,2]
[424108497,1780596654000,-566.99778171,0.00017407,2]
[424108490,1780596654000,-268.69652856,0.00017403,2]
[424108491,1780596654000,-419.41848754,0.00017403,2]
[424108492,1780596654000,-212.04522224,0.00017407,2]
[424108489,1780596654000,-235.10946249,0.00017403,2]
[424108493,1780596654000,-513.85233574,0.00017407,2]
[424108579,1780596655000,-789.41236569,0.00017759,2]
[424108571,1780596655000,-712.00199989,0.00017755,2]
[424108570,1780596655000,-538.70224375,0.00017755,2]
[424108569,1780596655000,-903.76807843,0.00017755,2]
[424108568,1780596655000,-1335.73228756,0.00017755,2]
[424108576,1780596655000,-465.14393687,0.00017759,2]
[424108564,1780596655000,-379.32927314,0.00017755,2]
[424108567,1780596655000,-705.7344675,0.00017755,2]
[424108565,1780596655000,-601.26304871,0.00017755,2]
[424108573,1780596655000,-698.48369056,0.00017759,2]
[424108574,1780596655000,-434.6642409,0.00017759,2]
[424108577,1780596655000,-730.55054075,0.00017759,2]
[424108566,1780596655000,-197.38306847,0.00017755,2]
[424108580,1780596655000,-750.05571594,0.00017759,2]
[424108584,1780596655000,-412.12904453,0.00017759,2]
[424108581,1780596655000,-326.93346608,0.00017759,2]
[424108589,1780596655000,-428.33613209,0.00017759,2]
[424108590,1780596655000,-800.69998412,0.00017759,2]
[424108586,1780596655000,-151.0,0.00017759,2]
[424108588,1780596655000,-700.63648571,0.00017759,2]
[424108575,1780596655000,-659.40809709,0.00017759,2]
[424108582,1780596655000,-498.48741501,0.00017759,2]
[424108583,1780596655000,-739.46050524,0.00017759,2]
[424108585,1780596655000,-151.0,0.00017759,2]
[424108587,1780596655000,-151.0,0.00017759,2]
[424108592,1780596655000,-413.14040738,0.00017759,2]
[424108591,1780596655000,-425.87224193,0.00017759,2]
[424108600,1780596655000,-683.37018869,0.00017785,2]
[424108603,1780596655000,-126000.0,0.000178,2]
[424108578,1780596655000,-753.44334247,0.00017759,2]
[424108561,1780596655000,-759.54706912,0.00017755,2]
[424108558,1780596655000,-424.09044447,0.00017755,2]
[424108559,1780596655000,-685.13644766,0.00017755,2]
[424108534,1780596655000,-500.0,0.00017534,2]
[424108533,1780596655000,-500.0,0.00017534,2]
[424108535,1780596655000,-1352.33,0.00017534,2]
[424108536,1780596655000,-818.72,0.00017534,2]
[424108532,1780596655000,-500.0,0.00017534,2]
[424108538,1780596655000,-500.0,0.00017534,2]
[424108537,1780596655000,-500.0,0.00017534,2]
[424108544,1780596655000,-990.48,0.00017534,2]
[424108546,1780596655000,-3630.11,0.00017534,2]